[Event "Live Chess"]
[Site "Chess.com"]
[Date "2023.09.16"]
[Round "-"]
[White "icarohm"]
[Black "MateusLuan08"]
[Result "1-0"]
[WhiteElo "1879"]
[BlackElo "1561"]
[TimeControl "900+5"]
[EndTime "7:38:39 PDT"]
[Termination "icarohm venceu por desistência"]

1. e4 {[%clk 0:15:03.9]} 1... e6 {[%clk 0:15:01.2]} 2. d4 {[%clk 0:15:07.1]}
2... d5 {[%clk 0:15:03.6]} 3. Nd2 {[%clk 0:15:05.2]} 3... Nf6 {[%clk 0:15:06.1]}
4. e5 {[%clk 0:15:08.3]} 4... Nfd7 {[%clk 0:15:10.1]} 5. f4 {[%clk 0:15:10]}
5... c5 {[%clk 0:15:10.7]} 6. c3 {[%clk 0:15:13.5]} 6... Nc6 {[%clk 0:15:13.3]}
7. Bb5 {[%clk 0:15:13.1]} 7... cxd4 {[%clk 0:15:08.9]} 8. Bxc6 {[%clk
0:15:14.5]} 8... bxc6 {[%clk 0:15:10.1]} 9. cxd4 {[%clk 0:15:18.4]} 9... c5
{[%clk 0:15:09.8]} 10. Ndf3 {[%clk 0:15:21.4]} 10... cxd4 {[%clk 0:15:10.1]} 11.
Nxd4 {[%clk 0:15:23.5]} 11... Bc5 {[%clk 0:15:10.1]} 12. Ngf3 {[%clk 0:15:27]}
12... O-O {[%clk 0:15:05.8]} 13. O-O {[%clk 0:15:26.3]} 13... Nb6 {[%clk
0:15:02.4]} 14. Kh1 {[%clk 0:15:28.7]} 14... Bb7 {[%clk 0:15:01.5]} 15. Be3
{[%clk 0:15:30.5]} 15... Nc4 {[%clk 0:15:01]} 16. Bg1 {[%clk 0:15:17.3]} 16...
Nxb2 {[%clk 0:14:56.3]} 17. Qb3 {[%clk 0:15:03.7]} 17... Qb6 {[%clk 0:14:55]}
18. Rab1 {[%clk 0:14:40]} 18... Nc4 {[%clk 0:14:34.9]} 19. Qc2 {[%clk 0:14:04]}
19... Qa6 {[%clk 0:14:10.6]} 20. Ng5 {[%clk 0:13:36]} 20... g6 {[%clk
0:14:00.8]} 21. h4 {[%clk 0:13:29.6]} 21... Na3 {[%clk 0:13:59.5]} 22. Qxc5
{[%clk 0:13:29]} 22... Nxb1 {[%clk 0:14:00.5]} 23. Rxb1 {[%clk 0:13:31.5]} 23...
Rfc8 {[%clk 0:13:58.2]} 24. Qe7 {[%clk 0:13:30.3]} 24... Rf8 {[%clk 0:13:46.8]}
25. Rxb7 {[%clk 0:13:30.7]} 25... Rab8 {[%clk 0:13:47.1]} 26. Rxb8 {[%clk
0:13:13.4]} 26... Rxb8 {[%clk 0:13:45.7]} 1-0

[Event "Live Chess"]
[Site "Chess.com"]
[Date "2023.09.16"]
[Round "-"]
[White "fernanndodod"]
[Black "Froidastics"]
[Result "0-1"]
[WhiteElo "1943"]
[BlackElo "1978"]
[TimeControl "900+5"]
[EndTime "7:39:41 PDT"]
[Termination "Froidastics venceu por desistência"]

1. e4 {[%clk 0:15:04.3]} 1... c5 {[%clk 0:15:03.1]} 2. Nf3 {[%clk 0:15:07.6]}
2... d6 {[%clk 0:15:06.8]} 3. d4 {[%clk 0:15:11.8]} 3... cxd4 {[%clk 0:15:11.2]}
4. Nxd4 {[%clk 0:15:15.4]} 4... Nf6 {[%clk 0:15:10.4]} 5. Nc3 {[%clk 0:15:19.3]}
5... a6 {[%clk 0:15:14.1]} 6. Bg5 {[%clk 0:15:23.4]} 6... e6 {[%clk 0:15:18.3]}
7. Be2 {[%clk 0:15:26.7]} 7... Be7 {[%clk 0:15:22.7]} 8. O-O {[%clk 0:15:31]}
8... O-O {[%clk 0:15:24.3]} 9. Kh1 {[%clk 0:15:33.6]} 9... b5 {[%clk 0:15:23.7]}
10. f4 {[%clk 0:15:37.3]} 10... Bb7 {[%clk 0:15:27.8]} 11. Bf3 {[%clk
0:15:41.6]} 11... Nbd7 {[%clk 0:15:29.4]} 12. e5 {[%clk 0:15:40.5]} 12... Bxf3
{[%clk 0:15:27.6]} 13. Nxf3 {[%clk 0:15:42.9]} 13... dxe5 {[%clk 0:15:22.8]} 14.
fxe5 {[%clk 0:15:45.2]} 14... Nd5 {[%clk 0:15:12.2]} 15. Nxd5 {[%clk 0:15:27.7]}
15... Bxg5 {[%clk 0:15:10.1]} 16. Nc3 {[%clk 0:15:17.7]} 16... Be7 {[%clk
0:14:49]} 17. Qe2 {[%clk 0:15:19.2]} 17... Rc8 {[%clk 0:14:43.7]} 18. Rad1
{[%clk 0:15:20.8]} 18... Qc7 {[%clk 0:14:44.3]} 19. Rd2 {[%clk 0:15:14]} 19...
Bb4 {[%clk 0:14:41.1]} 20. Rfd1 {[%clk 0:15:11.8]} 20... Rfd8 {[%clk 0:14:42.7]}
21. Qe3 {[%clk 0:15:09.3]} 21... Nb6 {[%clk 0:14:02.3]} 22. Rxd8+ {[%clk
0:15:11.5]} 22... Rxd8 {[%clk 0:14:05.9]} 23. Rxd8+ {[%clk 0:15:11.3]} 23...
Qxd8 {[%clk 0:14:09.4]} 24. h3 {[%clk 0:15:13.7]} 24... Nc4 {[%clk 0:14:01.9]}
25. Qc1 {[%clk 0:15:16.9]} 25... Qc7 {[%clk 0:13:35.4]} 26. a3 {[%clk
0:14:36.6]} 26... Bxc3 {[%clk 0:13:34.1]} 27. bxc3 {[%clk 0:14:41.5]} 27... Nxe5
{[%clk 0:13:38.3]} 28. Nxe5 {[%clk 0:14:44.9]} 28... Qxe5 {[%clk 0:13:42.1]} 29.
Qd1 {[%clk 0:14:49.8]} 29... g6 {[%clk 0:13:33.4]} 30. Qd8+ {[%clk 0:14:52]}
30... Kg7 {[%clk 0:13:37.6]} 31. Qc8 {[%clk 0:14:54.5]} 31... Qd6 {[%clk
0:13:22.8]} 32. a4 {[%clk 0:14:48]} 32... bxa4 {[%clk 0:13:21]} 33. Qc4 {[%clk
0:14:52.1]} 33... a3 {[%clk 0:13:19]} 34. Qb3 {[%clk 0:14:55.7]} 34... Qd1+
{[%clk 0:13:13.1]} 35. Kh2 {[%clk 0:14:58.1]} 35... Qa1 {[%clk 0:13:09.7]} 0-1

[Event "Live Chess"]
[Site "Chess.com"]
[Date "2023.09.16"]
[Round "-"]
[White "daniel-drummond"]
[Black "augustodemoraisrocha"]
[Result "1-0"]
[WhiteElo "1552"]
[BlackElo "1460"]
[TimeControl "900+5"]
[EndTime "7:39:45 PDT"]
[Termination "daniel-drummond venceu por desistência"]

1. e4 {[%clk 0:15:02]} 1... e5 {[%clk 0:15:03.6]} 2. Nf3 {[%clk 0:15:06]} 2...
Nc6 {[%clk 0:15:07.8]} 3. Bb5 {[%clk 0:15:09.3]} 3... Nf6 {[%clk 0:15:11.8]} 4.
O-O {[%clk 0:15:10.9]} 4... a6 {[%clk 0:15:14.9]} 5. Ba4 {[%clk 0:15:12.1]} 5...
b5 {[%clk 0:15:14.7]} 6. Bb3 {[%clk 0:15:14.5]} 6... d5 {[%clk 0:15:18.8]} 7.
exd5 {[%clk 0:15:16.9]} 7... Nxd5 {[%clk 0:15:23.7]} 8. Re1 {[%clk 0:15:13.2]}
8... f6 {[%clk 0:15:11]} 9. c3 {[%clk 0:15:15.9]} 9... Bg4 {[%clk 0:14:57]} 10.
d4 {[%clk 0:15:17.5]} 10... Bxf3 {[%clk 0:14:56]} 11. Qxf3 {[%clk 0:15:19.3]}
11... Nce7 {[%clk 0:14:52.2]} 12. dxe5 {[%clk 0:15:22.5]} 12... fxe5 {[%clk
0:14:54.9]} 13. Bg5 {[%clk 0:15:21.8]} 13... Nb6 {[%clk 0:14:45.3]} 14. Qf7+
{[%clk 0:15:20.4]} 14... Kd7 {[%clk 0:14:46]} 15. Rd1+ {[%clk 0:15:12.4]} 1-0

[Event "Live Chess"]
[Site "Chess.com"]
[Date "2023.09.16"]
[Round "-"]
[White "AlphaKaua10"]
[Black "Mika635Isa"]
[Result "1-0"]
[WhiteElo "1078"]
[BlackElo "531"]
[TimeControl "900+5"]
[EndTime "7:39:56 PDT"]
[Termination "AlphaKaua10 venceu por desistência"]

1. d4 {[%clk 0:15:03.3]} 1... d5 {[%clk 0:14:58.8]} 2. c4 {[%clk 0:15:07.2]}
2... dxc4 {[%clk 0:14:49.1]} 3. Qa4+ {[%clk 0:15:11.5]} 3... Bd7 {[%clk
0:14:47.2]} 4. Qxc4 {[%clk 0:15:14.8]} 4... Nf6 {[%clk 0:14:44.2]} 5. Nf3 {[%clk
0:15:15.5]} 5... b5 {[%clk 0:14:20.2]} 6. Qd3 {[%clk 0:15:09.6]} 6... e6 {[%clk
0:14:07.1]} 7. g3 {[%clk 0:15:11.6]} 7... Bb4+ {[%clk 0:14:05.2]} 8. Bd2 {[%clk
0:15:14]} 8... Bxd2+ {[%clk 0:14:08.9]} 9. Nbxd2 {[%clk 0:15:18.2]} 9... O-O
{[%clk 0:14:11.4]} 10. Bg2 {[%clk 0:15:22.3]} 10... b4 {[%clk 0:13:58.8]} 11.
Ne5 {[%clk 0:15:21.9]} 11... Nc6 {[%clk 0:13:41.9]} 12. Nxc6 {[%clk 0:15:23]}
12... Bxc6 {[%clk 0:13:45.6]} 13. Bxc6 {[%clk 0:15:26.1]} 13... Rb8 {[%clk
0:13:42]} 14. O-O {[%clk 0:15:29.9]} 14... Rb6 {[%clk 0:13:29.5]} 15. Bg2 {[%clk
0:15:31]} 15... a5 {[%clk 0:12:16.7]} 16. Rac1 {[%clk 0:15:28.6]} 16... e5
{[%clk 0:12:13.2]} 17. dxe5 {[%clk 0:15:31.2]} 17... Qxd3 {[%clk 0:12:13.9]} 18.
exd3 {[%clk 0:15:35.4]} 18... Nd7 {[%clk 0:12:16.4]} 19. Rxc7 {[%clk 0:15:37.7]}
19... Nxe5 {[%clk 0:12:19.8]} 20. d4 {[%clk 0:15:36.6]} 20... Nd3 {[%clk
0:12:20]} 21. b3 {[%clk 0:15:32.6]} 21... Re6 {[%clk 0:12:03.1]} 22. f4 {[%clk
0:15:19.9]} 22... Rfe8 {[%clk 0:11:41.5]} 23. Bd5 {[%clk 0:15:13.8]} 23... R6e7
{[%clk 0:11:32.3]} 24. Rxe7 {[%clk 0:15:16.9]} 24... Rxe7 {[%clk 0:11:35.5]} 25.
Nc4 {[%clk 0:15:20.2]} 25... Re2 {[%clk 0:10:47.9]} 26. Ne5 {[%clk 0:15:13.3]}
26... Nxe5 {[%clk 0:10:27.3]} 27. fxe5 {[%clk 0:15:15.8]} 27... Rxa2 {[%clk
0:10:28.6]} 28. Bxf7+ {[%clk 0:15:19.5]} 28... Kf8 {[%clk 0:10:20.2]} 29. Bg6+
{[%clk 0:15:22.7]} 29... Ke7 {[%clk 0:10:20.7]} 30. Bxh7 {[%clk 0:15:25.4]}
30... a4 {[%clk 0:10:19.8]} 31. bxa4 {[%clk 0:15:28.5]} 31... b3 {[%clk
0:10:23.8]} 32. d5 {[%clk 0:15:31.9]} 32... b2 {[%clk 0:10:27.7]} 33. d6+ {[%clk
0:15:35.9]} 33... Kd8 {[%clk 0:10:24.4]} 34. e6 {[%clk 0:15:38.9]} 34... Ra1
{[%clk 0:10:26.7]} 35. e7+ {[%clk 0:15:40.5]} 35... Kd7 {[%clk 0:10:27.4]} 36.
Bb1 {[%clk 0:15:37.9]} 36... g6 {[%clk 0:09:41.9]} 37. a5 {[%clk 0:15:38.9]}
37... Rxa5 {[%clk 0:09:42]} 38. Rf8 {[%clk 0:15:41.4]} 38... Re5 {[%clk
0:09:25.8]} 39. Bxg6 {[%clk 0:15:41.4]} 39... Re1+ {[%clk 0:09:24.3]} 40. Kf2
{[%clk 0:15:45.2]} 40... Re6 {[%clk 0:08:50.1]} 41. e8=Q+ {[%clk 0:15:47.1]}
41... Rxe8 {[%clk 0:08:50.9]} 42. Rxe8 {[%clk 0:15:51.2]} 42... Kxd6 {[%clk
0:08:53.6]} 43. Re2 {[%clk 0:15:53.4]} 43... b1=Q {[%clk 0:08:49.4]} 44. Bxb1
{[%clk 0:15:56.3]} 1-0

[Event "Live Chess"]
[Site "Chess.com"]
[Date "2023.09.16"]
[Round "-"]
[White "NavarroChess09"]
[Black "Samueeeseeel"]
[Result "0-1"]
[WhiteElo "1328"]
[BlackElo "929"]
[TimeControl "900+5"]
[EndTime "7:40:12 PDT"]
[Termination "Samueeeseeel venceu por desistência"]

1. d4 {[%clk 0:15:01.5]} 1... Nf6 {[%clk 0:14:58.5]} 2. Nf3 {[%clk 0:15:06.4]}
2... g6 {[%clk 0:14:45.1]} 3. Bg5 {[%clk 0:15:07.9]} 3... Bg7 {[%clk 0:14:48.4]}
4. Bxf6 {[%clk 0:15:10.3]} 4... Bxf6 {[%clk 0:14:51.1]} 5. e4 {[%clk 0:15:13.9]}
5... Kf8 {[%clk 0:14:53.5]} 6. e5 {[%clk 0:15:16.1]} 6... Bg7 {[%clk 0:14:55.7]}
7. Bc4 {[%clk 0:15:16.2]} 7... e6 {[%clk 0:14:57.5]} 8. O-O {[%clk 0:15:18]}
8... Ke7 {[%clk 0:15:01.1]} 9. Qd2 {[%clk 0:15:18.9]} 9... Re8 {[%clk
0:15:03.4]} 10. Qg5+ {[%clk 0:15:21.3]} 10... Kf8 {[%clk 0:15:05.6]} 11. Qg3
{[%clk 0:15:17]} 11... Kg8 {[%clk 0:15:07.7]} 12. Ng5 {[%clk 0:15:18.2]} 12...
h6 {[%clk 0:15:08.7]} 13. Ne4 {[%clk 0:15:17.9]} 13... d5 {[%clk 0:15:10.8]} 14.
Nf6+ {[%clk 0:15:14.6]} 14... Bxf6 {[%clk 0:15:13.6]} 15. exf6 {[%clk
0:15:13.3]} 15... dxc4 {[%clk 0:15:13.4]} 16. Qh4 {[%clk 0:15:14.9]} 16... Kh7
{[%clk 0:15:08.2]} 17. f4 {[%clk 0:14:53.5]} 17... Rg8 {[%clk 0:15:00.8]} 18.
Nc3 {[%clk 0:14:49.1]} 18... g5 {[%clk 0:14:58.3]} 19. fxg5 {[%clk 0:14:49.9]}
19... Rxg5 {[%clk 0:15:00.2]} 20. Ne4 {[%clk 0:14:52.5]} 20... Rf5 {[%clk
0:14:56.8]} 21. Rxf5 {[%clk 0:14:45.8]} 21... exf5 {[%clk 0:15:00.1]} 22. Ng3
{[%clk 0:14:47.9]} 22... Nc6 {[%clk 0:15:00.6]} 23. Nh5 {[%clk 0:14:48.2]} 23...
Qxd4+ {[%clk 0:14:43.8]} 24. Qf2 {[%clk 0:14:36.2]} 24... Qxf2+ {[%clk
0:14:41.9]} 25. Kxf2 {[%clk 0:14:41.1]} 25... Nd4 {[%clk 0:14:44.6]} 26. Rd1
{[%clk 0:14:40.4]} 26... Nxc2 {[%clk 0:14:46.2]} 27. Rd8 {[%clk 0:14:40.8]}
27... Kg6 {[%clk 0:14:48.2]} 28. Ng3 {[%clk 0:14:38]} 28... Kxf6 {[%clk
0:14:40.2]} 29. Rh8 {[%clk 0:14:39.9]} 29... Kg7 {[%clk 0:14:41.7]} 30. Re8
{[%clk 0:14:37]} 30... Nd4 {[%clk 0:14:40.8]} 31. Rd8 {[%clk 0:14:37.3]} 31...
Nc6 {[%clk 0:14:43.9]} 32. Re8 {[%clk 0:14:38.2]} 32... f6 {[%clk 0:14:43.5]}
33. Nxf5+ {[%clk 0:14:40.4]} 33... Kf7 {[%clk 0:14:42.9]} 34. Rh8 {[%clk
0:14:38.3]} 34... Ne7 {[%clk 0:14:34.3]} 35. Rh7+ {[%clk 0:14:33.1]} 35... Ke8
{[%clk 0:14:36.5]} 36. Rxe7+ {[%clk 0:14:35.5]} 36... Kd8 {[%clk 0:14:39.7]} 37.
Rf7 {[%clk 0:14:28.7]} 37... Bxf5 {[%clk 0:14:42]} 38. Rf8+ {[%clk 0:14:32]}
38... Kd7 {[%clk 0:14:45.8]} 39. Rxa8 {[%clk 0:14:35.4]} 39... c6 {[%clk
0:14:50]} 40. Rxa7 {[%clk 0:14:38.1]} 40... Kc7 {[%clk 0:14:54.4]} 41. Ra4
{[%clk 0:14:39]} 41... Be6 {[%clk 0:14:55.8]} 42. Rb4 {[%clk 0:14:38.7]} 42...
b5 {[%clk 0:14:58]} 43. a4 {[%clk 0:14:40.1]} 43... Kb6 {[%clk 0:15:00.8]} 44.
axb5 {[%clk 0:14:42.8]} 44... cxb5 {[%clk 0:15:03.5]} 45. h4 {[%clk 0:14:43.1]}
45... Ka5 {[%clk 0:15:07]} 46. Rxc4 {[%clk 0:14:38.1]} 46... Bxc4 {[%clk
0:15:09.2]} 47. Ke3 {[%clk 0:14:41.8]} 47... Kb4 {[%clk 0:15:11.4]} 48. Kd4
{[%clk 0:14:45.2]} 48... Kb3 {[%clk 0:15:14.8]} 49. Kc5 {[%clk 0:14:47.7]} 49...
Kxb2 {[%clk 0:15:18.8]} 50. Kb4 {[%clk 0:14:51.4]} 50... Kc2 {[%clk 0:15:22.2]}
51. g4 {[%clk 0:14:54.9]} 51... Kd3 {[%clk 0:15:25.2]} 52. g5 {[%clk 0:14:57.8]}
52... fxg5 {[%clk 0:15:26.9]} 53. hxg5 {[%clk 0:15:01]} 53... hxg5 {[%clk
0:15:29.7]} 54. Kc5 {[%clk 0:15:03.5]} 54... g4 {[%clk 0:15:32.6]} 0-1

[Event "Live Chess"]
[Site "Chess.com"]
[Date "2023.09.16"]
[Round "-"]
[White "ABC2009V"]
[Black "z_anne_ari"]
[Result "1-0"]
[WhiteElo "2005"]
[BlackElo "1257"]
[TimeControl "900+5"]
[EndTime "7:40:19 PDT"]
[Termination "ABC2009V venceu por desistência"]

1. e4 {[%clk 0:15:02.3]} 1... e5 {[%clk 0:15:02.1]} 2. Nf3 {[%clk 0:15:03.8]}
2... Nc6 {[%clk 0:15:05.4]} 3. d4 {[%clk 0:15:04.6]} 3... exd4 {[%clk
0:15:09.1]} 4. Nxd4 {[%clk 0:15:07.4]} 4... Nxd4 {[%clk 0:15:13.2]} 5. Qxd4
{[%clk 0:15:10]} 5... d6 {[%clk 0:14:57.1]} 6. Bc4 {[%clk 0:14:07.1]} 6... Nf6
{[%clk 0:14:51.5]} 7. O-O {[%clk 0:14:08.4]} 7... Bd7 {[%clk 0:14:51.8]} 8. Nc3
{[%clk 0:14:10.8]} 8... c5 {[%clk 0:14:55.3]} 9. Qd1 {[%clk 0:14:08.8]} 9... Be7
{[%clk 0:14:58.9]} 10. Bg5 {[%clk 0:14:00.1]} 10... O-O {[%clk 0:14:59.8]} 11.
Bxf6 {[%clk 0:13:40.2]} 11... Bxf6 {[%clk 0:15:03.2]} 12. Nd5 {[%clk 0:13:41.9]}
12... Bxb2 {[%clk 0:15:04]} 13. Rb1 {[%clk 0:13:44.3]} 13... Be5 {[%clk
0:15:05.8]} 14. Rxb7 {[%clk 0:13:21.8]} 14... Bc6 {[%clk 0:14:59.4]} 15. Rb3
{[%clk 0:13:21.6]} 15... Qh4 {[%clk 0:14:58.5]} 16. g3 {[%clk 0:13:17.1]} 16...
Qxe4 {[%clk 0:15:01.5]} 17. Ne7+ {[%clk 0:13:19.1]} 17... Kh8 {[%clk 0:14:59.4]}
18. Nxc6 {[%clk 0:13:23.3]} 18... Qxc6 {[%clk 0:15:03.5]} 19. Bd5 {[%clk
0:13:27.5]} 19... Qd7 {[%clk 0:14:47.3]} 20. Bxa8 {[%clk 0:13:30.7]} 20... Rxa8
{[%clk 0:14:51.8]} 21. Qf3 {[%clk 0:13:31.6]} 21... h5 {[%clk 0:14:55]} 22.
Qxa8+ {[%clk 0:13:35.2]} 22... Kh7 {[%clk 0:14:57.4]} 23. Qe4+ {[%clk
0:13:37.4]} 23... g6 {[%clk 0:15:01.3]} 24. Rd1 {[%clk 0:13:41.4]} 24... Bf6
{[%clk 0:14:56.4]} 25. Rb7 {[%clk 0:13:39.9]} 25... Qf5 {[%clk 0:14:55.2]} 26.
Rxf7+ {[%clk 0:13:35.3]} 26... Kh6 {[%clk 0:14:58.7]} 27. Qxf5 {[%clk
0:13:31.7]} 27... gxf5 {[%clk 0:15:01.6]} 28. Rxf6+ {[%clk 0:13:36.2]} 1-0

[Event "Live Chess"]
[Site "Chess.com"]
[Date "2023.09.16"]
[Round "-"]
[White "Edson_Zarnelli"]
[Black "Abofado"]
[Result "1-0"]
[WhiteElo "789"]
[BlackElo "569"]
[TimeControl "900+5"]
[EndTime "7:40:38 PDT"]
[Termination "Edson_Zarnelli venceu por desistência"]

1. e4 {[%clk 0:15:01.3]} 1... c6 {[%clk 0:15:04.9]} 2. Nf3 {[%clk 0:15:04.2]}
2... d5 {[%clk 0:15:09.2]} 3. exd5 {[%clk 0:15:07.5]} 3... cxd5 {[%clk
0:15:13.6]} 4. Nc3 {[%clk 0:15:08.4]} 4... e5 {[%clk 0:15:18.5]} 5. Nxe5 {[%clk
0:15:10]} 5... Qa5 {[%clk 0:15:17.7]} 6. Qf3 {[%clk 0:14:52.5]} 6... d4 {[%clk
0:15:18.9]} 7. Qxf7+ {[%clk 0:14:39.1]} 7... Kd8 {[%clk 0:15:20.6]} 8. Qxf8+
{[%clk 0:14:37.7]} 8... Kc7 {[%clk 0:15:22.1]} 9. Qxg7+ {[%clk 0:14:40.2]} 9...
Kd8 {[%clk 0:15:25.1]} 10. Nf7+ {[%clk 0:14:29]} 10... Ke8 {[%clk 0:15:26.6]}
11. Bb5+ {[%clk 0:14:28.6]} 11... Bd7 {[%clk 0:15:26.5]} 12. Bxd7+ {[%clk
0:14:32.2]} 12... Nxd7 {[%clk 0:15:28.1]} 13. Nd6+ {[%clk 0:14:07.9]} 13... Kd8
{[%clk 0:15:22.8]} 14. Qxh8 {[%clk 0:13:58.8]} 14... Nc5 {[%clk 0:15:22]} 15.
Qxg8+ {[%clk 0:13:57.1]} 15... Kc7 {[%clk 0:15:22.6]} 16. Qxa8 {[%clk
0:13:59.8]} 16... Ne6 {[%clk 0:15:23.5]} 17. Qxb7+ {[%clk 0:13:43.8]} 17... Kxd6
{[%clk 0:15:26.5]} 18. Ne4+ {[%clk 0:13:42.5]} 18... Ke5 {[%clk 0:15:25.4]} 19.
Qxh7 {[%clk 0:13:42.9]} 19... Kf4 {[%clk 0:15:27.4]} 20. Qf7+ {[%clk 0:13:37.1]}
20... Kxe4 {[%clk 0:15:27.8]} 21. Qxe6+ {[%clk 0:13:40.5]} 21... Kf4 {[%clk
0:15:31.9]} 1-0

[Event "Live Chess"]
[Site "Chess.com"]
[Date "2023.09.16"]
[Round "-"]
[White "IanFLS"]
[Black "brenin12345"]
[Result "1-0"]
[WhiteElo "1875"]
[BlackElo "768"]
[TimeControl "900+5"]
[EndTime "7:40:55 PDT"]
[Termination "IanFLS venceu por xeque-mate"]

1. e4 {[%clk 0:15:00.1]} 1... e5 {[%clk 0:15:03.8]} 2. Nf3 {[%clk 0:15:04.1]}
2... Nc6 {[%clk 0:15:06.6]} 3. Bb5 {[%clk 0:15:07.7]} 3... Nf6 {[%clk
0:15:08.9]} 4. O-O {[%clk 0:15:11.4]} 4... a6 {[%clk 0:15:09.9]} 5. Ba4 {[%clk
0:15:15.1]} 5... Bc5 {[%clk 0:14:58.8]} 6. Re1 {[%clk 0:15:18.1]} 6... d5 {[%clk
0:14:50.1]} 7. exd5 {[%clk 0:15:07.3]} 7... Qxd5 {[%clk 0:14:35.6]} 8. Bxc6+
{[%clk 0:15:09.8]} 8... bxc6 {[%clk 0:14:27.9]} 9. Rxe5+ {[%clk 0:15:13.3]} 9...
Qxe5 {[%clk 0:14:09.2]} 10. Nxe5 {[%clk 0:15:16.6]} 10... Bd7 {[%clk 0:13:23.4]}
11. Nxd7 {[%clk 0:15:19]} 11... Nxd7 {[%clk 0:13:26]} 12. Qe2+ {[%clk
0:15:19.7]} 12... Be7 {[%clk 0:13:25.9]} 13. d4 {[%clk 0:15:23.1]} 13... O-O
{[%clk 0:13:29.7]} 14. Be3 {[%clk 0:15:23.5]} 14... Rfb8 {[%clk 0:13:25.5]} 15.
c3 {[%clk 0:15:26.9]} 15... c5 {[%clk 0:13:06.3]} 16. Nd2 {[%clk 0:15:30.5]}
16... Rxb2 {[%clk 0:13:01.9]} 17. Rb1 {[%clk 0:15:27.2]} 17... Rxa2 {[%clk
0:12:16.4]} 18. Qc4 {[%clk 0:15:24]} 18... Ra5 {[%clk 0:11:23.6]} 19. g3 {[%clk
0:15:13.4]} 19... Rb8 {[%clk 0:11:07.2]} 20. Rxb8+ {[%clk 0:15:15.7]} 20... Nxb8
{[%clk 0:11:09.8]} 21. dxc5 {[%clk 0:15:19.8]} 21... Nc6 {[%clk 0:10:52.1]} 22.
Qd5 {[%clk 0:15:11.8]} 22... Nd8 {[%clk 0:10:20.4]} 23. Nc4 {[%clk 0:14:43.7]}
23... c6 {[%clk 0:10:07.8]} 24. Qd7 {[%clk 0:14:41]} 24... Ne6 {[%clk 0:09:38]}
25. Nxa5 {[%clk 0:14:34.3]} 25... Nxc5 {[%clk 0:09:11.9]} 26. Bxc5 {[%clk
0:14:38.2]} 26... Bxc5 {[%clk 0:09:16.5]} 27. Qe8+ {[%clk 0:14:34.8]} 27... Bf8
{[%clk 0:09:16.9]} 28. Nxc6 {[%clk 0:14:39.5]} 28... a5 {[%clk 0:09:16.7]} 29.
Ne7+ {[%clk 0:14:44.4]} 29... Kh8 {[%clk 0:09:19.3]} 30. Qxf8# {[%clk 0:14:49]}
1-0

[Event "Live Chess"]
[Site "Chess.com"]
[Date "2023.09.16"]
[Round "-"]
[White "GabrielGGCF"]
[Black "MateusLuan08"]
[Result "0-1"]
[WhiteElo "1379"]
[BlackElo "1565"]
[TimeControl "900+5"]
[EndTime "7:42:06 PDT"]
[Termination "MateusLuan08 venceu por desistência"]

1. e4 {[%clk 0:15:03.2]} 1... e6 {[%clk 0:14:56.9]} 2. d4 {[%clk 0:15:06.2]}
2... d5 {[%clk 0:14:48]} 3. exd5 {[%clk 0:15:09.4]} 3... exd5 {[%clk 0:14:50.6]}
4. Qe2+ {[%clk 0:15:10.2]} 4... Be6 {[%clk 0:14:53.4]} 5. Nc3 {[%clk 0:15:12.9]}
5... Nf6 {[%clk 0:14:54.8]} 6. Nf3 {[%clk 0:15:16.4]} 6... Bb4 {[%clk
0:14:57.1]} 7. Bd2 {[%clk 0:15:19.5]} 7... O-O {[%clk 0:14:58.3]} 8. a3 {[%clk
0:15:14.1]} 8... Ba5 {[%clk 0:14:58.3]} 9. b4 {[%clk 0:15:11.7]} 9... Bb6 {[%clk
0:14:56.5]} 10. Qd3 {[%clk 0:15:08.3]} 10... Nc6 {[%clk 0:14:57.1]} 11. Bg5
{[%clk 0:15:02.5]} 11... h6 {[%clk 0:14:47.5]} 12. Bf4 {[%clk 0:15:02.6]} 12...
Re8 {[%clk 0:14:43.9]} 13. Ne5 {[%clk 0:15:04.8]} 13... Bxd4 {[%clk 0:14:38.1]}
14. Nxc6 {[%clk 0:15:03.9]} 14... Bxc3+ {[%clk 0:14:32.7]} 15. Qxc3 {[%clk
0:15:07]} 15... bxc6 {[%clk 0:14:34.8]} 16. Qxc6 {[%clk 0:15:10.9]} 16... Bd7+
{[%clk 0:14:38.8]} 0-1

[Event "Live Chess"]
[Site "Chess.com"]
[Date "2023.09.16"]
[Round "-"]
[White "Giulliajapa007"]
[Black "danilo655"]
[Result "0-1"]
[WhiteElo "991"]
[BlackElo "751"]
[TimeControl "900+5"]
[EndTime "7:42:35 PDT"]
[Termination "danilo655 venceu por xeque-mate"]

1. e4 {[%clk 0:15:00.2]} 1... c5 {[%clk 0:15:01.9]} 2. Nf3 {[%clk 0:15:03.1]}
2... Nc6 {[%clk 0:15:03]} 3. Bb5 {[%clk 0:15:06.2]} 3... Nd4 {[%clk 0:14:59.5]}
4. Nxd4 {[%clk 0:15:08.7]} 4... cxd4 {[%clk 0:15:02.6]} 5. d3 {[%clk 0:15:09.2]}
5... a6 {[%clk 0:15:01.7]} 6. Bc4 {[%clk 0:15:12.7]} 6... g6 {[%clk 0:14:55.1]}
7. c3 {[%clk 0:15:15.3]} 7... Bg7 {[%clk 0:14:47.2]} 8. cxd4 {[%clk 0:15:10.2]}
8... Bxd4 {[%clk 0:14:47.5]} 9. Nc3 {[%clk 0:15:09.6]} 9... e6 {[%clk
0:14:38.6]} 10. Bd2 {[%clk 0:15:07.4]} 10... b5 {[%clk 0:13:56.3]} 11. Bb3
{[%clk 0:15:03.9]} 11... b4 {[%clk 0:13:33.6]} 12. Na4 {[%clk 0:15:04.9]} 12...
a5 {[%clk 0:13:12.9]} 13. O-O {[%clk 0:14:53.4]} 13... Ba6 {[%clk 0:13:00.8]}
14. Bc4 {[%clk 0:14:38.6]} 14... Nf6 {[%clk 0:12:04.9]} 15. Bxa6 {[%clk
0:14:31.4]} 15... Rxa6 {[%clk 0:12:06.5]} 16. Bg5 {[%clk 0:14:25.6]} 16... Qb8
{[%clk 0:11:55.4]} 17. Rc1 {[%clk 0:14:26.4]} 17... h5 {[%clk 0:11:32.1]} 18. b3
{[%clk 0:14:25.6]} 18... Ng4 {[%clk 0:11:33.1]} 19. Be3 {[%clk 0:14:19.9]} 19...
Qxh2# {[%clk 0:11:32.1]} 0-1

[Event "Live Chess"]
[Site "Chess.com"]
[Date "2023.09.16"]
[Round "-"]
[White "IanFLS"]
[Black "Abofado"]
[Result "1-0"]
[WhiteElo "1875"]
[BlackElo "569"]
[TimeControl "900+5"]
[EndTime "7:42:35 PDT"]
[Termination "IanFLS venceu por xeque-mate"]

1. e4 {[%clk 0:15:02.6]} 1... c6 {[%clk 0:15:04.4]} 2. d4 {[%clk 0:15:05.1]}
2... d5 {[%clk 0:15:06.9]} 3. f3 {[%clk 0:15:09.5]} 3... dxe4 {[%clk 0:15:09.4]}
4. fxe4 {[%clk 0:15:13.9]} 4... e5 {[%clk 0:15:11.9]} 5. Nf3 {[%clk 0:15:18.2]}
5... exd4 {[%clk 0:15:15.3]} 6. Qxd4 {[%clk 0:15:19.9]} 6... Qf6 {[%clk
0:15:16.9]} 7. Nc3 {[%clk 0:15:09.3]} 7... Na6 {[%clk 0:15:13.8]} 8. Bg5 {[%clk
0:15:11.3]} 8... Bc5 {[%clk 0:15:14.4]} 9. Bxf6 {[%clk 0:15:13.3]} 9... Bxd4
{[%clk 0:15:17.7]} 10. Bxd4 {[%clk 0:15:17.7]} 10... Nb4 {[%clk 0:15:19.9]} 11.
O-O-O {[%clk 0:15:19.3]} 11... Be6 {[%clk 0:15:19.2]} 12. Bxg7 {[%clk
0:15:20.2]} 12... Bxa2 {[%clk 0:15:22.9]} 13. Nxa2 {[%clk 0:15:24.2]} 13...
Nxa2+ {[%clk 0:15:27.8]} 14. Kb1 {[%clk 0:15:28.3]} 14... Nb4 {[%clk 0:15:29.8]}
15. Bxh8 {[%clk 0:15:32.5]} 15... Ne7 {[%clk 0:15:33.8]} 16. Bf6 {[%clk
0:15:36.2]} 16... Nc8 {[%clk 0:15:34.9]} 17. Rd8# {[%clk 0:15:38.9]} 1-0